[Event "2e tournoi de GMI du Barreau de Paris"]
[Site "Paris, France"]
[Date "2021.06.20"]
[Round "4.4"]
[White "Vlachos, Anatole"]
[Black "Bellahcene, Bilel"]
[Result "1/2-1/2"]
[TimeControl "90+30"]
[WhiteElo "2439"]
[BlackElo "2499"]

1. e4 {[%clk 01:26:23]} {[%emt 00:04:36]} c5 {[%clk 01:30:00]} {[%emt
00:01:00]} 2. Nf3 {[%clk 01:26:46]} {[%emt 00:00:07]} Nc6 {[%clk 01:30:25]}
{[%emt 00:00:05]} 3. d4 {[%clk 01:27:11]} {[%emt 00:00:05]} cxd4 {[%clk
01:30:52]} {[%emt 00:00:04]} 4. Nxd4 {[%clk 01:27:36]} {[%emt 00:00:05]} Nf6
{[%clk 01:31:12]} {[%emt 00:00:10]} 5. Nc3 {[%clk 01:28:02]} {[%emt 00:00:04]}
e6 {[%clk 01:31:39]} {[%emt 00:00:03]} 6. Nxc6 {[%clk 01:26:59]} {[%emt
00:01:33]} bxc6 {[%clk 01:32:06]} {[%emt 00:00:03]} 7. e5 {[%clk 01:27:22]}
{[%emt 00:00:07]} Nd5 {[%clk 01:32:34]} {[%emt 00:00:01]} 8. Ne4 {[%clk
01:27:46]} {[%emt 00:00:06]} Qc7 {[%clk 01:33:02]} {[%emt 00:00:03]} 9. f4
{[%clk 01:28:12]} {[%emt 00:00:04]} Rb8 {[%clk 01:31:54]} {[%emt 00:01:38]} 10.
a3 {[%clk 01:25:16]} {[%emt 00:03:26]} Qb6 {[%clk 01:28:58]} {[%emt 00:03:26]}
11. Bd3 {[%clk 01:14:55]} {[%emt 00:10:51]} Be7 {[%clk 01:27:50]} {[%emt
00:01:37]} 12. Qe2 {[%clk 01:04:30]} {[%emt 00:10:55]} f5 {[%clk 01:24:42]}
{[%emt 00:03:38]} 13. exf6 {[%clk 01:02:16]} {[%emt 00:02:43]} Nxf6 {[%clk
01:20:12]} {[%emt 00:05:01]} 14. Ng5 {[%clk 01:02:24]} {[%emt 00:00:21]} O-O
{[%clk 01:17:31]} {[%emt 00:03:11]} 15. Be3 {[%clk 00:58:34]} {[%emt 00:04:19]}
c5 {[%clk 01:06:41]} {[%emt 00:11:21]} 16. O-O {[%clk 00:56:52]} {[%emt
00:02:11]} Bb7 {[%clk 01:06:56]} {[%emt 00:00:16]} 17. c4 {[%clk 00:50:05]}
{[%emt 00:07:17]} h6 {[%clk 01:02:20]} {[%emt 00:05:06]} 18. Nf3 {[%clk
00:43:08]} {[%emt 00:07:26]} Bxf3 {[%clk 01:00:03]} {[%emt 00:02:48]} 19. Qxf3
{[%clk 00:43:30]} {[%emt 00:00:07]} Qxb2 {[%clk 00:53:12]} {[%emt 00:07:21]} 20.
Qg3 {[%clk 00:43:58]} {[%emt 00:00:02]} Qb6 {[%clk 00:40:43]} {[%emt 00:12:59]}
21. Rab1 {[%clk 00:31:09]} {[%emt 00:13:18]} Qc7 {[%clk 00:38:48]} {[%emt
00:02:26]} 22. Qg6 {[%clk 00:29:53]} {[%emt 00:01:46]} Rxb1 {[%clk 00:36:10]}
{[%emt 00:03:10]} 23. Rxb1 {[%clk 00:30:01]} {[%emt 00:00:21]} Rb8 {[%clk
00:34:06]} {[%emt 00:02:33]} 24. g4 {[%clk 00:29:57]} {[%emt 00:00:33]} Rxb1+
{[%clk 00:33:41]} {[%emt 00:00:57]} 25. Bxb1 {[%clk 00:30:24]} {[%emt
00:00:02]} Kf8 {[%clk 00:31:24]} {[%emt 00:02:47]} 26. g5 {[%clk 00:22:03]}
{[%emt 00:08:49]} hxg5 {[%clk 00:26:25]} {[%emt 00:05:30]} 27. fxg5 {[%clk
00:22:32]} {[%emt 00:00:01]} Qe5 {[%clk 00:26:48]} {[%emt 00:00:08]} 28. Bf2
{[%clk 00:22:00]} {[%emt 00:00:59]} Ng4 {[%clk 00:16:20]} {[%emt 00:10:59]} 29.
Qh5 {[%clk 00:22:22]} {[%emt 00:00:07]} Qxg5 {[%clk 00:16:08]} {[%emt
00:00:43]} 30. Qxg5 {[%clk 00:22:07]} {[%emt 00:00:45]} Bxg5 {[%clk 00:16:35]}
{[%emt 00:00:03]} 31. Bxc5+ {[%clk 00:22:31]} {[%emt 00:00:06]} Be7 {[%clk
00:17:03]} {[%emt 00:00:01]} 32. Bxa7 {[%clk 00:22:53]} {[%emt 00:00:08]} Bxa3
{[%clk 00:17:31]} {[%emt 00:00:02]} 33. Bd4 {[%clk 00:20:01]} {[%emt 00:03:21]}
Bc1 {[%clk 00:17:42]} {[%emt 00:00:19]} 34. h3 {[%clk 00:20:04]} {[%emt
00:00:28]} Nh6 {[%clk 00:15:53]} {[%emt 00:02:19]} 35. Bg6 {[%clk 00:19:11]}
{[%emt 00:01:22]} Ba3 {[%clk 00:16:10]} {[%emt 00:00:14]} 36. h4 {[%clk
00:15:27]} {[%emt 00:04:13]} Nf5 {[%clk 00:15:59]} {[%emt 00:00:43]} 37. Bxf5
{[%clk 00:15:30]} {[%emt 00:00:27]} exf5 {[%clk 00:16:27]} {[%emt 00:00:02]} 38.
h5 {[%clk 00:15:18]} {[%emt 00:00:41]} Bc1 {[%clk 00:16:46]} {[%emt 00:00:10]}
39. Kg2 {[%clk 00:14:59]} {[%emt 00:00:48]} Kg8 {[%clk 00:16:41]} {[%emt
00:00:38]} 40. Kf3 {[%clk 00:14:03]} {[%emt 00:01:25]} Bg5 {[%clk 00:12:40]}
{[%emt 00:04:32]} 41. Be5 {[%clk 00:12:52]} {[%emt 00:01:42]} Kf7 {[%clk
00:12:02]} {[%emt 00:01:07]} 42. Bd4 {[%clk 00:11:10]} {[%emt 00:02:12]} Bf6
{[%clk 00:12:06]} {[%emt 00:00:26]} 43. Be3 {[%clk 00:11:19]} {[%emt 00:00:21]}
Be5 {[%clk 00:12:11]} {[%emt 00:00:25]} 44. Bg5 {[%clk 00:11:09]} {[%emt
00:00:38]} Ke6 {[%clk 00:11:49]} {[%emt 00:00:52]} 45. Bd2 {[%clk 00:10:40]}
{[%emt 00:00:57]} Bd4 {[%clk 00:11:39]} {[%emt 00:00:43]} 46. Kf4 {[%clk
00:10:06]} {[%emt 00:01:04]} Kf6 {[%clk 00:11:50]} {[%emt 00:00:20]} 47. Bc1
{[%clk 00:09:34]} {[%emt 00:01:00]} Be5+ {[%clk 00:09:12]} {[%emt 00:03:09]} 48.
Kf3 {[%clk 00:10:01]} {[%emt 00:00:02]} g5 {[%clk 00:09:35]} {[%emt 00:00:07]}
49. hxg6 {[%clk 00:10:26]} {[%emt 00:00:06]} Kxg6 {[%clk 00:10:03]} {[%emt
00:00:02]} 50. Be3 {[%clk 00:09:57]} {[%emt 00:00:59]} Kf6 {[%clk 00:10:29]}
{[%emt 00:00:04]} 51. Bf2 {[%clk 00:09:00]} {[%emt 00:01:26]} Ke6 {[%clk
00:10:56]} {[%emt 00:00:04]} 52. Bc5 {[%clk 00:08:59]} {[%emt 00:00:30]} Bd6
{[%clk 00:11:21]} {[%emt 00:00:06]} 53. Bd4 {[%clk 00:09:15]} {[%emt 00:00:13]}
Bf8 {[%clk 00:11:48]} {[%emt 00:00:03]} 54. Bc3 {[%clk 00:08:48]} {[%emt
00:00:57]} Bh6 {[%clk 00:12:15]} {[%emt 00:00:04]} 55. Bd4 {[%clk 00:08:55]}
{[%emt 00:00:23]} Kd6 {[%clk 00:12:31]} {[%emt 00:00:13]} 56. Kg3 {[%clk
00:09:11]} {[%emt 00:00:11]} Kc6 {[%clk 00:12:35]} {[%emt 00:00:29]} 57. Kf3
{[%clk 00:05:33]} {[%emt 00:04:07]} Kb7 {[%clk 00:13:01]} {[%emt 00:00:05]} 58.
Bc3 {[%clk 00:05:20]} {[%emt 00:00:41]} Kb6 {[%clk 00:13:16]} {[%emt 00:00:17]}
59. Bb4 {[%clk 00:05:30]} {[%emt 00:00:18]} Bc1 {[%clk 00:13:27]} {[%emt
00:00:20]} 60. Kg3 {[%clk 00:05:13]} {[%emt 00:00:46]} Be3 {[%clk 00:13:35]}
{[%emt 00:00:23]} 61. Kh4 {[%clk 00:02:00]} {[%emt 00:03:44]} Bc5 {[%clk
00:12:37]} {[%emt 00:01:27]} 62. Bd2 {[%clk 00:02:28]} {[%emt 00:00:01]} Be7+
{[%clk 00:12:39]} {[%emt 00:00:29]} 63. Kh5 {[%clk 00:01:41]} {[%emt 00:01:17]}
Bd6 {[%clk 00:12:54]} {[%emt 00:00:16]} 64. Be3+ {[%clk 00:01:25]} {[%emt
00:00:46]} Ka5 {[%clk 00:13:11]} {[%emt 00:00:12]} 65. Kg5 {[%clk 00:01:30]}
{[%emt 00:00:26]} f4 {[%clk 00:12:47]} {[%emt 00:00:54]} 66. Bf2 {[%clk
00:01:53]} {[%emt 00:00:06]} Bb8 {[%clk 00:10:06]} {[%emt 00:03:12]} 67. Kf5
{[%clk 00:01:23]} {[%emt 00:00:59]} Kb4 {[%clk 00:10:18]} {[%emt 00:00:20]} 68.
c5 {[%clk 00:01:44]} {[%emt 00:00:07]} Kc3 {[%clk 00:08:51]} {[%emt 00:01:58]}
69. Ke4 {[%clk 00:01:28]} {[%emt 00:00:46]} Kd2 {[%clk 00:08:58]} {[%emt
00:00:23]} 70. Kf3 {[%clk 00:01:32]} {[%emt 00:00:27]} Kd3 {[%clk 00:09:25]}
{[%emt 00:00:03]} 71. Bh4 {[%clk 00:01:30]} {[%emt 00:00:30]} Kd4 {[%clk
00:08:57]} {[%emt 00:00:59]} 72. Be7 {[%clk 00:01:19]} {[%emt 00:00:41]} Bc7
{[%clk 00:06:27]} {[%emt 00:03:00]} 73. Bf8 {[%clk 00:01:38]} {[%emt 00:00:11]}
Kd5 {[%clk 00:06:51]} {[%emt 00:00:06]} 74. Be7 {[%clk 00:01:48]} {[%emt
00:00:20]} Ke6 {[%clk 00:06:17]} {[%emt 00:01:04]} 75. Bh4 {[%clk 00:01:53]}
{[%emt 00:00:24]} Kd5 {[%clk 00:05:44]} {[%emt 00:01:05]} 76. Be7 {[%clk
00:01:44]} {[%emt 00:00:39]} Bb8 {[%clk 00:06:06]} {[%emt 00:00:08]} 77. Bf8
{[%clk 00:01:07]} {[%emt 00:01:08]} Be5 {[%clk 00:04:43]} {[%emt 00:01:53]} 78.
Be7 {[%clk 00:01:23]} {[%emt 00:00:14]} Ke6 {[%clk 00:05:07]} {[%emt 00:00:06]}
79. Bf8 {[%clk 00:01:24]} {[%emt 00:00:29]} Kf5 {[%clk 00:05:21]} {[%emt
00:00:17]} 80. Bh6 {[%clk 00:01:43]} {[%emt 00:00:10]} Bc7 {[%clk 00:05:47]}
{[%emt 00:00:05]} 81. Bf8 {[%clk 00:01:04]} {[%emt 00:01:08]} Ba5 {[%clk
00:06:06]} {[%emt 00:00:11]} 82. Bd6 {[%clk 00:01:22]} {[%emt 00:00:12]} Bd2
{[%clk 00:06:30]} {[%emt 00:00:06]} 83. Bc7 {[%clk 00:01:22]} {[%emt 00:00:30]}
Be3 {[%clk 00:05:58]} {[%emt 00:01:02]} 84. Bd6 {[%clk 00:01:42]} {[%emt
00:00:10]} Bc1 {[%clk 00:05:04]} {[%emt 00:01:25]} 85. Bc7 {[%clk 00:02:07]}
{[%emt 00:00:05]} Be3 {[%clk 00:03:00]} {[%emt 00:02:34]} 86. Bd6 {[%clk
00:02:35]} {[%emt 00:00:02]} Ke6 {[%clk 00:03:18]} {[%emt 00:00:12]} 87. Ke4
{[%clk 00:03:01]} {[%emt 00:00:04]} Bxc5 {[%clk 00:03:24]} {[%emt 00:00:25]}
1/2-1/2

[Event "2e tournoi de GMI du Barreau de Paris"]
[Site "Paris, France"]
[Date "2021.06.20"]
[Round "4.3"]
[White "David, Alberto"]
[Black "Msellek, Ilyass"]
[Result "1-0"]
[TimeControl "90+30"]
[WhiteElo "2527"]
[BlackElo "2334"]

1. d4 {[%clk 01:29:43]} {[%emt 00:01:16]} d5 {[%clk 01:25:41]} {[%emt
00:05:19]} 2. c4 {[%clk 01:29:51]} {[%emt 00:00:22]} e6 {[%clk 01:25:48]}
{[%emt 00:00:24]} 3. Nc3 {[%clk 01:29:58]} {[%emt 00:00:23]} Nf6 {[%clk
01:24:53]} {[%emt 00:01:25]} 4. cxd5 {[%clk 01:30:05]} {[%emt 00:00:23]} exd5
{[%clk 01:25:07]} {[%emt 00:00:16]} 5. Bg5 {[%clk 01:30:21]} {[%emt 00:00:13]}
Be7 {[%clk 01:24:38]} {[%emt 00:00:57]} 6. e3 {[%clk 01:29:44]} {[%emt
00:01:09]} c6 {[%clk 01:23:35]} {[%emt 00:01:34]} 7. Bd3 {[%clk 01:28:46]}
{[%emt 00:01:28]} O-O {[%clk 01:22:30]} {[%emt 00:01:34]} 8. Bf4 {[%clk
01:22:36]} {[%emt 00:06:40]} Bg4 {[%clk 01:08:32]} {[%emt 00:14:28]} 9. f3
{[%clk 01:16:28]} {[%emt 00:06:39]} Bh5 {[%clk 01:06:32]} {[%emt 00:02:30]} 10.
g4 {[%clk 01:09:53]} {[%emt 00:07:06]} Bg6 {[%clk 01:05:53]} {[%emt 00:01:09]}
11. Nge2 {[%clk 01:07:01]} {[%emt 00:03:21]} b5 {[%clk 00:41:53]} {[%emt
00:24:30]} 12. h4 {[%clk 01:02:57]} {[%emt 00:04:34]} Ne8 {[%clk 00:24:43]}
{[%emt 00:17:40]} 13. h5 {[%clk 00:55:31]} {[%emt 00:07:56]} Bxd3 {[%clk
00:25:06]} {[%emt 00:00:08]} 14. Qxd3 {[%clk 00:55:56]} {[%emt 00:00:05]} Bd6
{[%clk 00:21:46]} {[%emt 00:03:50]} 15. Kf2 {[%clk 00:48:37]} {[%emt 00:07:49]}
Nd7 {[%clk 00:20:53]} {[%emt 00:01:23]} 16. Rag1 {[%clk 00:48:33]} {[%emt
00:00:34]} Rc8 {[%clk 00:16:07]} {[%emt 00:05:16]} 17. g5 {[%clk 00:43:11]}
{[%emt 00:05:52]} f5 {[%clk 00:15:29]} {[%emt 00:01:09]} 18. gxf6 {[%clk
00:38:37]} {[%emt 00:05:04]} Qxf6 {[%clk 00:15:38]} {[%emt 00:00:21]} 19. Rh3
{[%clk 00:35:57]} {[%emt 00:03:10]} Kh8 {[%clk 00:15:12]} {[%emt 00:00:56]} 20.
Rg6 {[%clk 00:18:53]} {[%emt 00:17:34]} Qe7 {[%clk 00:06:05]} {[%emt 00:09:37]}
21. h6 {[%clk 00:15:39]} {[%emt 00:03:43]} hxg6 {[%clk 00:05:39]} {[%emt
00:00:56]} 22. Qxg6 {[%clk 00:16:04]} {[%emt 00:00:05]} Kg8 {[%clk 00:05:57]}
{[%emt 00:00:12]} 23. hxg7 {[%clk 00:16:24]} {[%emt 00:00:10]} Qxg7 {[%clk
00:05:31]} {[%emt 00:00:56]} 24. Qe6+ {[%clk 00:16:33]} {[%emt 00:00:21]} Qf7
{[%clk 00:05:23]} {[%emt 00:00:39]} 25. Qh6 {[%clk 00:16:38]} {[%emt 00:00:24]}
Qf5 {[%clk 00:04:36]} {[%emt 00:01:17]} 26. Rh5 {[%clk 00:11:22]} {[%emt
00:05:45]} Bxf4 {[%clk 00:04:44]} {[%emt 00:00:22]} 27. Qh8+ {[%clk 00:11:38]}
{[%emt 00:00:14]} Kf7 {[%clk 00:05:10]} {[%emt 00:00:05]} 28. Rxf5+ {[%clk
00:12:04]} {[%emt 00:00:04]} Nef6 {[%clk 00:04:15]} {[%emt 00:01:25]} 29. Qh7+
{[%clk 00:12:12]} {[%emt 00:00:23]} Ke8 {[%clk 00:04:39]} {[%emt 00:00:06]} 30.
Qg6+ {[%clk 00:12:36]} {[%emt 00:00:06]} 1-0

[Event "2e tournoi de GMI du Barreau de Paris"]
[Site "Paris, France"]
[Date "2021.06.20"]
[Round "4.2"]
[White "Feller, Sebastien"]
[Black "Dardha, Daniel"]
[Result "1/2-1/2"]
[TimeControl "90+30"]
[WhiteElo "2568"]
[BlackElo "2503"]

1. d4 {[%emt 00:01:11]} d5 {[%emt 00:00:02]} 2. Nf3 {[%emt 00:00:02]} e6 {[%emt
00:00:02]} 3. Bf4 {[%emt 00:00:02]} Bd6 {[%emt 00:00:01]} 4. Bg3 {[%emt
00:00:01]} Nf6 {[%emt 00:00:06]} 5. e3 {[%emt 00:00:01]} O-O {[%emt 00:00:03]}
6. Nbd2 {[%emt 00:00:04]} b6 {[%emt 00:00:01]} 7. Bd3 {[%emt 00:00:05]} c5 8.
c3 {[%emt 00:00:03]} Ba6 {[%emt 00:00:01]} 9. Bxa6 Nxa6 10. Bh4 {[%emt
00:00:01]} Be7 {[%emt 00:00:07]} 11. Ne5 {[%emt 00:00:01]} Nb8 {[%emt
00:00:07]} 12. dxc5 {[%emt 00:00:02]} bxc5 {[%emt 00:00:03]} 13. c4 Qc7 {[%emt
00:00:04]} 14. Nef3 {[%emt 00:00:01]} Nbd7 {[%emt 00:00:06]} 15. O-O {[%emt
00:00:02]} a5 {[%emt 00:00:04]} 16. cxd5 {[%emt 00:00:02]} exd5 {[%emt
00:00:02]} 17. Qc2 {[%emt 00:00:02]} Qb7 {[%emt 00:00:01]} 18. Rfe1 {[%emt
00:00:05]} Rab8 {[%emt 00:00:06]} 19. Rab1 Rfe8 {[%emt 00:00:04]} 20. Bg3
{[%emt 00:00:01]} Rbd8 {[%emt 00:00:05]} 21. e4 {[%emt 00:00:03]} Nxe4 {[%emt
00:00:01]} 22. Nxe4 dxe4 23. Qxe4 {[%emt 00:00:03]} Qxe4 24. Rxe4 Bf6 {[%emt
00:00:01]} 25. Rxe8+ Rxe8 26. Kf1 {[%emt 00:00:01]} c4 {[%emt 00:00:04]} 27.
Nd2 c3 {[%emt 00:00:04]} 28. bxc3 Bxc3 29. Nc4 {[%emt 00:00:04]} h6 {[%emt
00:00:01]} 30. f3 {[%emt 00:00:03]} a4 {[%emt 00:00:16]} 31. Rb7 {[%emt
00:00:10]} Nc5 {[%emt 00:00:01]} 32. Rc7 {[%emt 00:00:07]} Na6 {[%emt
00:00:03]} 33. Ra7 {[%emt 00:00:04]} Nc5 {[%emt 00:00:01]} 34. Bf2 {[%emt
00:00:06]} Nd3 {[%emt 00:00:02]} 35. Rxa4 {[%emt 00:00:05]} Nxf2 {[%emt
00:00:02]} 36. Kxf2 {[%emt 00:00:02]} Re1 {[%emt 00:00:07]} 37. Nd6 {[%emt
00:00:02]} Rh1 {[%emt 00:00:05]} 38. Ra8+ {[%emt 00:00:02]} Kh7 {[%emt
00:00:02]} 39. h3 {[%emt 00:00:09]} Bd4+ {[%emt 00:00:02]} 40. Ke2 {[%emt
00:00:01]} Rh2 {[%emt 00:00:10]} 41. Kd3 {[%emt 00:00:01]} Ba1 {[%emt
00:00:23]} 42. g4 {[%emt 00:00:07]} Rxh3 {[%emt 00:00:01]} 43. Ke4 {[%emt
00:00:03]} Kg6 {[%emt 00:00:01]} 44. a4 {[%emt 00:00:04]} h5 {[%emt 00:00:01]}
45. gxh5+ Rxh5 46. f4 {[%emt 00:00:05]} f5+ {[%emt 00:00:01]} 47. Kd5 {[%emt
00:00:07]} Rh4 {[%emt 00:00:02]} 48. a5 {[%emt 00:00:04]} Rxf4 {[%emt
00:00:04]} 49. a6 {[%emt 00:00:06]} Bd4 {[%emt 00:00:04]} 50. a7 {[%emt
00:00:04]} Be3 {[%emt 00:00:03]} 51. Ke6 {[%emt 00:00:05]} Ra4 {[%emt
00:00:07]} 52. Nxf5 {[%emt 00:00:02]} Ra6+ {[%emt 00:00:03]} 53. Kd5 {[%emt
00:00:27]} Rxa7 {[%emt 00:00:09]} 54. Rxa7 {[%emt 00:00:02]} Bxa7 {[%emt
00:00:05]} 55. Nxg7 {[%emt 00:00:11]} 1/2-1/2

[Event "2e tournoi de GMI du Barreau de Paris"]
[Site "Paris, France"]
[Date "2021.06.20"]
[Round "4.5"]
[White "Travadon, Loic"]
[Black "Kevlishvili, Robby"]
[Result "0-1"]
[TimeControl "90+30"]
[WhiteElo "2415"]
[BlackElo "2499"]

1. e4 {[%clk 01:30:57]} {[%emt 00:00:02]} c5 {[%clk 01:30:52]} {[%emt
00:00:08]} 2. Nc3 {[%clk 01:31:22]} {[%emt 00:00:05]} d6 {[%clk 01:30:45]}
{[%emt 00:00:37]} 3. Nf3 {[%clk 01:31:46]} {[%emt 00:00:06]} Nf6 {[%clk
01:31:08]} {[%emt 00:00:07]} 4. d4 {[%clk 01:32:11]} {[%emt 00:00:05]} cxd4
{[%clk 01:31:32]} {[%emt 00:00:06]} 5. Nxd4 {[%clk 01:32:38]} {[%emt 00:00:03]}
a6 {[%clk 01:31:51]} {[%emt 00:00:11]} 6. Rg1 {[%clk 01:33:03]} {[%emt
00:00:04]} e5 {[%clk 01:31:36]} {[%emt 00:00:45]} 7. Nb3 {[%clk 01:33:18]}
{[%emt 00:00:16]} Be6 {[%clk 01:31:46]} {[%emt 00:00:21]} 8. g4 {[%clk
01:33:30]} {[%emt 00:00:18]} d5 {[%clk 01:31:23]} {[%emt 00:00:52]} 9. exd5
{[%clk 01:33:53]} {[%emt 00:00:07]} Nxd5 {[%clk 01:31:46]} {[%emt 00:00:07]} 10.
Nxd5 {[%clk 01:34:17]} {[%emt 00:00:06]} Qxd5 {[%clk 01:30:52]} {[%emt
00:01:24]} 11. Qxd5 {[%clk 01:34:37]} {[%emt 00:00:10]} Bxd5 {[%clk 01:31:13]}
{[%emt 00:00:08]} 12. Be3 {[%clk 01:34:54]} {[%emt 00:00:13]} Nc6 {[%clk
01:25:49]} {[%emt 00:05:54]} 13. O-O-O {[%clk 01:35:17]} {[%emt 00:00:07]}
O-O-O {[%clk 01:25:11]} {[%emt 00:01:08]} 14. Bb6 {[%clk 01:35:37]} {[%emt
00:00:10]} Rd7 {[%clk 01:25:34]} {[%emt 00:00:06]} 15. g5 {[%clk 01:35:41]}
{[%emt 00:00:26]} Be6 {[%clk 01:24:15]} {[%emt 00:01:49]} 16. Rxd7 {[%clk
01:36:00]} {[%emt 00:00:12]} Bxd7 {[%clk 01:22:20]} {[%emt 00:02:24]} 17. Bc4
{[%clk 01:35:30]} {[%emt 00:01:00]} Be8 {[%clk 01:19:17]} {[%emt 00:03:33]} 18.
c3 {[%clk 01:28:35]} {[%emt 00:07:25]} Be7 {[%clk 01:16:05]} {[%emt 00:03:42]}
19. Nc5 {[%clk 01:28:04]} {[%emt 00:01:01]} h6 {[%clk 01:05:29]} {[%emt
00:11:06]} 20. g6 {[%clk 01:26:30]} {[%emt 00:02:05]} fxg6 {[%clk 01:05:53]}
{[%emt 00:00:06]} 21. Rd1 {[%clk 01:26:02]} {[%emt 00:00:58]} g5 {[%clk
00:42:57]} {[%emt 00:23:26]} 22. b4 {[%clk 01:25:47]} {[%emt 00:00:45]} h5
{[%clk 00:42:08]} {[%emt 00:01:19]} 23. a4 {[%clk 01:18:54]} {[%emt 00:07:23]}
g4 {[%clk 00:25:53]} {[%emt 00:16:45]} 24. b5 {[%clk 01:18:34]} {[%emt
00:00:50]} axb5 {[%clk 00:26:17]} {[%emt 00:00:05]} 25. axb5 {[%clk 01:18:49]}
{[%emt 00:00:15]} Nd8 {[%clk 00:26:14]} {[%emt 00:00:32]} 26. Rxd8+ {[%clk
01:16:38]} {[%emt 00:02:42]} Bxd8 {[%clk 00:26:39]} {[%emt 00:00:05]} 27. Be6+
{[%clk 01:17:01]} {[%emt 00:00:07]} Kb8 {[%clk 00:25:09]} {[%emt 00:02:00]} 28.
Bxd8 {[%clk 01:17:25]} {[%emt 00:00:06]} Bxb5 {[%clk 00:24:49]} {[%emt
00:00:50]} 29. Bh4 {[%clk 01:17:19]} {[%emt 00:00:35]} Kc7 {[%clk 00:21:02]}
{[%emt 00:04:18]} 30. Bf7 {[%clk 01:17:07]} {[%emt 00:00:42]} Be8 {[%clk
00:19:44]} {[%emt 00:01:48]} 31. Ne6+ {[%clk 01:14:40]} {[%emt 00:02:57]} Kd6
{[%clk 00:19:46]} {[%emt 00:00:28]} 32. Bxe8 {[%clk 01:15:03]} {[%emt
00:00:08]} Kxe6 {[%clk 00:16:55]} {[%emt 00:03:21]} 33. Bg6 {[%clk 01:15:19]}
{[%emt 00:00:13]} Kd5 {[%clk 00:16:14]} {[%emt 00:01:12]} 34. Kd2 {[%clk
01:15:11]} {[%emt 00:00:38]} Rh6 {[%clk 00:16:27]} {[%emt 00:00:17]} 35. Bf7+
{[%clk 01:15:11]} {[%emt 00:00:30]} Ke4 {[%clk 00:16:44]} {[%emt 00:00:13]} 36.
c4 {[%clk 01:14:05]} {[%emt 00:01:36]} Rd6+ {[%clk 00:14:46]} {[%emt 00:02:28]}
37. Bd5+ {[%clk 01:14:28]} {[%emt 00:00:07]} Kf5 {[%clk 00:14:56]} {[%emt
00:00:20]} 38. Be7 {[%clk 01:14:06]} {[%emt 00:00:52]} Rd7 {[%clk 00:15:21]}
{[%emt 00:00:05]} 39. Bc5 {[%clk 01:13:15]} {[%emt 00:01:21]} b5 {[%clk
00:15:44]} {[%emt 00:00:07]} 40. Ke3 {[%clk 01:13:10]} {[%emt 00:00:35]} bxc4
{[%clk 00:16:11]} {[%emt 00:00:04]} 41. Bxc4 {[%clk 01:13:24]} {[%emt
00:00:15]} Rd1 {[%clk 00:16:09]} {[%emt 00:00:31]} 42. Bd3+ {[%clk 01:13:28]}
{[%emt 00:00:26]} Kf6 {[%clk 00:16:30]} {[%emt 00:00:10]} 43. Be4 {[%clk
01:13:22]} {[%emt 00:00:36]} Re1+ {[%clk 00:15:32]} {[%emt 00:01:27]} 44. Kd3
{[%clk 01:13:50]} {[%emt 00:00:02]} Rb1 {[%clk 00:14:35]} {[%emt 00:01:27]} 45.
Be3 {[%clk 01:13:12]} {[%emt 00:01:09]} Rb4 {[%clk 00:14:03]} {[%emt 00:01:02]}
46. Bc6 {[%clk 01:13:20]} {[%emt 00:00:21]} Rb1 {[%clk 00:14:11]} {[%emt
00:00:22]} 47. Bd2 {[%clk 01:13:06]} {[%emt 00:00:45]} Rb3+ {[%clk 00:13:51]}
{[%emt 00:00:49]} 48. Bc3 {[%clk 01:13:14]} {[%emt 00:00:22]} Kf5 {[%clk
00:13:07]} {[%emt 00:01:14]} 49. Kc2 {[%clk 01:10:57]} {[%emt 00:02:47]} Ra3
{[%clk 00:13:10]} {[%emt 00:00:27]} 50. Kb2 {[%clk 01:09:57]} {[%emt 00:01:30]}
Ra6 {[%clk 00:13:17]} {[%emt 00:00:22]} 51. Bd5 {[%clk 01:10:07]} {[%emt
00:00:20]} h4 {[%clk 00:11:09]} {[%emt 00:02:38]} 52. Kc2 {[%clk 01:07:03]}
{[%emt 00:03:34]} e4 {[%clk 00:08:40]} {[%emt 00:02:59]} 53. Bc4 {[%clk
01:01:00]} {[%emt 00:06:33]} Rc6 {[%clk 00:08:40]} {[%emt 00:00:30]} 54. Bb5
{[%clk 01:01:03]} {[%emt 00:00:26]} Rc5 {[%clk 00:08:44]} {[%emt 00:00:26]} 55.
Bd7+ {[%clk 01:01:12]} {[%emt 00:00:21]} Kf4 {[%clk 00:09:05]} {[%emt
00:00:09]} 56. Be6 {[%clk 00:59:29]} {[%emt 00:02:13]} Kf3 {[%clk 00:08:55]}
{[%emt 00:00:39]} 57. Kd2 {[%clk 00:59:22]} {[%emt 00:00:37]} g3 {[%clk
00:08:40]} {[%emt 00:00:46]} 58. hxg3 {[%clk 00:59:27]} {[%emt 00:00:25]} hxg3
{[%clk 00:09:05]} {[%emt 00:00:04]} 0-1

[ePGN "0.1;DGT LiveChess/2.2.5"]